Cogmind - Beta 10.2 @@@ ROGUE MODE // 2021.11.03 @ 16:44:31 Player: ZEROAFFEX Result: Self-destructed Performance ------------- Evolutions (4) 2000 Regions Visited (8) 1600 Robots Destroyed (52) 260 Value Destroyed (1733) 1733 Prototype IDs (4) 80 Alien Tech Used (0) 0 Bonus (1592) 1592 TOTAL SCORE: 7265 Bonus ------- High Alert Combat Kills 12 Follower Combat Kills 1401 Aligned with FarCom 300 Friendly Fire -121 Cogmind --------- Core Integrity 850/850 Matter 300/300 Energy 160/160 System Corruption 0% Temperature Cool (0) Movement Rolling (270) Ox19 Location -6/Lower Caves Parts ------- > --- POWER (1) -------- Light Nuclear Core > --- PROPULSION (2) --- Medium Treads Wheel > --- UTILITY (10) ----- High-capacity Storage Unit High-capacity Storage Unit High-capacity Storage Unit Advanced Targeting Computer Army-in-a-Box (0/30) > --- WEAPON (2) ------- High-powered Shotgun Heavy Missile Launcher > --- INVENTORY (28) --- Light Deuterium Engine Light Treads Improved Treads Armored Treads High-capacity Matter Pod (200) Heavy Particle Cannon Guided Plasma Cannon Autogun Minigun High-powered Shotgun Enhanced Autogun Assault Cannon Grenade Launcher Ripper Peak State ------------ > --- POWER ------------ Light Nuclear Core > --- PROPULSION ------- Medium Treads Wheel > --- UTILITY ---------- High-capacity Storage Unit High-capacity Storage Unit High-capacity Storage Unit Advanced Targeting Computer Army-in-a-Box > --- WEAPON ----------- High-powered Shotgun Heavy Missile Launcher > --- INVENTORY -------- Light Deuterium Engine Light Treads Improved Treads Armored Treads High-capacity Matter Pod Heavy Particle Cannon Guided Plasma Cannon Autogun Minigun High-powered Shotgun Enhanced Autogun Assault Cannon Grenade Launcher Ripper [Rating: 79] Favorites ----------- Power Light Nuclear Core Engine Improved Ion Engine Power Core Light Nuclear Core Propulsion Wheel Treads Light Treads Wheel Wheel Utility High-capacity Storage Unit Device Army-in-a-Box Storage High-capacity Storage Unit Processor Advanced Targeting Computer Protection Heavy Armor Plating Weapon High-powered Shotgun Energy Gun Small Laser Energy Cannon Guided Plasma Cannon Ballistic Gun High-powered Shotgun Launcher Heavy Missile Launcher Special Weapon Mining Laser Slashing Weapon Ripper Build | -11 -10 -10 -10 -9 -8 -7 -6 -6 ------- Run | Scr Mat Min Exi Min Mat Fac Fac Low Slots Evolved 8 | . . . . . 4 2 2 . Power . | . . . . . . . . . Propulsion . | . . . . . . . . . Utility 8 | . . . . . 4 2 2 . Weapon . | . . . . . . . . . Parts Attached 88 | 7 8 18 6 1 38 6 4 . Power 10 | 1 1 3 . . 5 . . . Engine 7 | 1 1 2 . . 3 . . . Core 3 | . . 1 . . 2 . . . Reactor . | . . . . . . . . . Propulsion 15 | 2 2 5 . . 5 1 . . Treads 7 | 1 . 2 . . 3 1 . . Leg . | . . . . . . . . . Wheel 8 | 1 2 3 . . 2 . . . Hover . | . . . . . . . . . Flight . | . . . . . . . . . Utility 25 | 1 2 . 2 . 12 5 3 . Device 7 | . . . . . 4 3 . . Storage 8 | 1 2 . 2 . 1 . 2 . Processor 1 | . . . . . . . 1 . Hackware . | . . . . . . . . . Protection 9 | . . . . . 7 2 . . Artifact . | . . . . . . . . . Weapon 38 | 3 3 10 4 1 16 . 1 . Energy Gun 2 | 1 . . . . 1 . . . Energy Cannon 2 | . . . 2 . . . . . Ballistic Gun 28 | 2 3 9 2 1 11 . . . Ballistic Cannon . | . . . . . . . . . Launcher 2 | . . . . . 1 . 1 . Special Weapon 1 | . . 1 . . . . . . Impact Weapon . | . . . . . . . . . Slashing Weapon 3 | . . . . . 3 . . . Piercing Weapon . | . . . . . . . . . Special Melee Weapon . | . . . . . . . . . Unidentified Prototypes 4 | . . . 1 . 2 1 . . Parts Lost 15 | . 3 8 . . 4 . . . Power 3 | . . 2 . . 1 . . . Propulsion 5 | . 1 4 . . . . . . Utility 1 | . . . . . 1 . . . Weapon 6 | . 2 2 . . 2 . . . Highest Loss Streak 3 | . 2 3 . . 2 . . . Average Slot Usage (%) 83 | . 99 98 95 100 86 61 66 66 Engine 6 | . 14 9 14 14 3 . . . Core 3 | . . 4 . . 5 7 6 6 Treads 10 | . 14 12 14 14 9 7 6 6 Wheel 10 | . 13 14 14 14 9 7 6 6 Device 3 | . . . . . 4 6 6 6 Storage 22 | . 27 28 28 28 21 15 20 20 Protection 3 | . . . . . 15 . . . Ballistic Gun 19 | . 25 26 24 28 17 15 7 6 Naked Turns . | . . . . . . . . . Heaviest Build 191 | 10 39 43 84 77 105 155 191 191 Greatest Support 20 | 10 16 20 10 10 10 10 10 10 Greatest Overweight (x) 19 | . 3 12 8 7 10 15 19 19 Average Overweight (x) 8 | . 2 3 5 7 9 14 18 19 Largest Inventory Capacity 28 | 6 16 16 20 20 20 20 28 28 Average Capacity 19 | 5 15 16 18 20 20 20 27 28 Most Carried 20 | 4 13 16 20 20 20 20 14 14 Average Carried 15 | 2 9 13 15 19 19 14 13 14 Final Capacity 28 | 6 16 16 20 20 20 20 28 28 Final Carried 20 | 4 11 16 20 20 19 15 14 14 Class Distribution -------------------- 65% | Hauler-Mutant 16% | Mutant 14% | Scavenger-Mutant 3% | Hauler-Skirmisher Dominant Class ---------------- Mutant | -10/Materials Scavenger-Mutant | -10/Mines Hauler-Mutant | -10/Exiles Hauler-Mutant | -9/Mines Hauler-Mutant | -8/Materials Hauler-Mutant | -7/Factory Hauler-Mutant | -6/Factory Hauler-Mutant | -6/Lower Caves Resources | -11 -10 -10 -10 -9 -8 -7 -6 -6 ----------- Run | Scr Mat Min Exi Min Mat Fac Fac Low Matter Collected 1997 | 211 299 330 40 39 898 98 40 42 Remotely 262 | . . . . . 262 . . . Salvage Created 1931 | . 563 470 . . 823 6 . 69 Parts 114 | . 32 29 . . 53 . . . Haulers Intercepted 1 | . . . . . 1 . . . Recyclers Shooed 2 | . 1 . . . 1 . . . Parts Field Recycled . | . . . . . . . . . Retrieved Matter . | . . . . . . . . . Parts Self-Destructed 2 | . . . . . . . . 2 Prevented . | . . . . . . . . . Kills | -11 -10 -10 -10 -9 -8 -7 -6 -6 ------- Run | Scr Mat Min Exi Min Mat Fac Fac Low Combat Hostiles Destroyed 48 | . 11 14 . . 21 . . 2 Guns 46 | . 11 14 . . 21 . . . AOE 2 | . . . . . . . . 2 Classes Destroyed 9 | . 3 3 . . 2 1 . . Worker 3 | . 3 . . . . . . . Tunneler 1 | . . . . . 1 . . . Hauler 1 | . . . . . 1 . . . Drone 1 | . . . . . . 1 . . Watcher 1 | . 1 . . . . . . . Swarmer 11 | . . 3 . . 8 . . . Grunt 26 | . 11 7 . . 6 . . 2 Sentry 9 | . . 2 . . 7 . . . Assembled 2 | . . 2 . . . . . . Best Kill Streak 6 | . 6 4 . . 5 . . 2 Combat Bots Only 5 | . 4 4 . . 5 . . 2 Max Kills in Single Turn 2 | . 2 1 . . 2 1 . 1 Gunslinging . | . . . . . . . . . Exploded 1 | . . . . . . . . 1 Melee . | . . . . . . . . . Uniques/NPCs Destroyed . | . . . . . . . . . Combat | -11 -10 -10 -10 -9 -8 -7 -6 -6 -------- Run | Scr Mat Min Exi Min Mat Fac Fac Low Damage Taken 3379 | . 542 1039 . 3 1337 223 24 211 Core 378 | . 57 185 . . 119 17 . . Absorbed by Shields . | . . . . . . . . . Core Remaining (%) 69 | 100 . . . 3 78 97 . . Volleys Fired 165 | 2 40 45 . . 72 3 . 3 Largest 2 | 1 2 2 . . 2 2 . 1 Hottest 100 | 20 60 100 . . 79 50 . 39 Shots Fired 313 | 2 78 82 . . 142 6 . 3 Gun 300 | 2 78 74 . . 140 6 . . Cannon . | . . . . . . . . . Launcher 5 | . . . . . 2 . . 3 Special 8 | . . 8 . . . . . . Kinetic 295 | 2 75 74 . . 138 6 . . Thermal 13 | . 3 8 . . 2 . . . Explosive 5 | . . . . . 2 . . 3 Electromagnetic . | . . . . . . . . . Robot Hit Streak 21 | 2 13 21 . . 21 2 . 4 Robot Miss Streak 9 | . 3 2 . . 9 4 . . Penetration Max . | . . . . . . . . . Secondary Targets 12 | . 1 5 . . 6 . . . Max Gunslinging Chain 1 | . 1 1 . . 1 . . . Shots Hit Robots 217 | 2 55 55 . . 99 3 . 3 Core Hits 107 | 1 28 27 . . 41 4 . 6 Critical Hits 4 | . 2 . . . 2 . . . Critical Kills 2 | . 1 . . . 1 . . . Critical Parts Destroyed 2 | . 1 . . . 1 . . . Melee Attacks 2 | . . . . . 2 . . . Impact . | . . . . . . . . . Slashing 2 | . . . . . 2 . . . Piercing . | . . . . . . . . . Sneak Attacks . | . . . . . . . . . Combat Hostiles . | . . . . . . . . . Follow-up Attacks . | . . . . . . . . . Damage Inflicted 3237 | 13 733 505 . 7 1490 166 . 323 Guns 2829 | 13 715 505 . . 1476 120 . . Cannons . | . . . . . . . . . Explosions 323 | . . . . . . . . 323 Melee . | . . . . . . . . . Ramming 85 | . 18 . . 7 14 46 . . Kinetic 2767 | 13 683 505 . . 1446 120 . . Thermal 62 | . 32 . . . 30 . . . Explosive 323 | . . . . . . . . 323 Electromagnetic . | . . . . . . . . . Impact . | . . . . . . . . . Slashing . | . . . . . . . . . Piercing . | . . . . . . . . . Highest Corruption 3 | . 1 1 1 1 . 3 . . Average Corruption 1 | . 1 1 1 1 . 2 . . Corruption Purged . | . . . . . . . . . Effects 12 | . 3 3 3 1 . 2 . . Message Errors 7 | . 2 2 2 . . 1 . . Matter Fused 1 | . . . . . . 1 . . Energy Discharges 1 | . . . . 1 . . . . Data Loss (minor) 2 | . 1 . 1 . . . . . Targeting Errors 1 | . . 1 . . . . . . Overload Shots . | . . . . . . . . . Overflow Damage . | . . . . . . . . . Projectiles . | . . . . . . . . . Explosions . | . . . . . . . . . Melee . | . . . . . . . . . Knockbacks 1 | . . . . 1 . . . . Impact 1 | . . . . 1 . . . . Kinetic . | . . . . . . . . . Secondary . | . . . . . . . . . Self-Inflicted Damage 208 | . 9 . . 3 39 21 . 136 Shots 4 | . . . . . 1 . . 3 Rammed 10 | . 2 . . 1 2 5 . . Targets Rammed 10 | . 2 . . 1 2 5 . . Kicked . | . . . . . . . . . Crushed . | . . . . . . . . . Highest Temperature 165 | . 19 60 . . 165 19 . . Average Temperature 28 | . 7 22 . . 33 9 . . Received Heat Transfer 1050 | . 294 249 . . 423 42 6 36 Siege Activations . | . . . . . . . . . Robots Corrupted . | . . . . . . . . . Combat Hostiles . | . . . . . . . . . Parts Fried . | . . . . . . . . . Impact Corruptions . | . . . . . . . . . Robots Melted . | . . . . . . . . . Combat Hostiles . | . . . . . . . . . Parts Melted . | . . . . . . . . . Heat Transferred 149 | . 75 . . . 74 . . . Parts Sabotaged . | . . . . . . . . . Parts Stolen . | . . . . . . . . . Parts Stripped . | . . . . . . . . . Power Chain Reactions . | . . . . . . . . . Missiles Intercepted . | . . . . . . . . . Alert | -11 -10 -10 -10 -9 -8 -7 -6 -6 ------- Run | Scr Mat Min Exi Min Mat Fac Fac Low Peak Influence 1384 | . 273 117 . . 271 1384 898 . Initial 666 | . . 27 . . . 44 666 . Average 246 | . 102 78 . . 150 432 697 . Maximum Alert Level 4 | . 1 . . . 1 4 3 . Low Security (%) 67 | 100 92 100 . 100 57 55 . . Level 1 14 | . 7 . . . 42 9 . . Level 2 8 | . . . . . . 7 85 . Level 3 4 | . . . . . . 11 14 . Level 4 4 | . . . . . . 15 . . Level 5 . | . . . . . . . . . High Security . | . . . . . . . . . Max Security . | . . . . . . . . . Squads Dispatched 17 | . 7 . . . 2 7 1 . Investigation 5 | . 3 . . . 1 1 . . Extermination 2 | . . . . . . 2 . . Reinforcement 8 | . 4 . . . 1 3 . . Assault 1 | . . . . . . . 1 . Garrison 1 | . . . . . . 1 . . Intercept . | . . . . . . . . . Construction Impeded 1 | . . . . . . 1 . . Haulers Reinforced . | . . . . . . . . . Stealth | -11 -10 -10 -10 -9 -8 -7 -6 -6 --------- Run | Scr Mat Min Exi Min Mat Fac Fac Low Distress Signals 6 | . 1 1 . . 3 1 . . Communications Jammed . | . . . . . . . . . Distress Signals . | . . . . . . . . . Times Spotted 109 | . 21 17 . . 36 17 8 10 Peak Tracking Total 6 | . 5 4 . . 6 4 4 5 Tactical Retreats 5 | . . 2 . . 1 1 . 1 Traps | -11 -10 -10 -10 -9 -8 -7 -6 -6 ------- Run | Scr Mat Min Exi Min Mat Fac Fac Low Traps Triggered 5 | . 2 . . . 3 . . . Indirectly . | . . . . . . . . . Trap Hack Attempts . | . . . . . . . . . Triggered . | . . . . . . . . . Disarmed . | . . . . . . . . . Reprogrammed . | . . . . . . . . . Reused 4 | . . 4 . . . . . . Traps Extracted . | . . . . . . . . . Installed 4 | . . 4 . . . . . . Triggered 3 | . . 3 . . . . . . Machines | -11 -10 -10 -10 -9 -8 -7 -6 -6 ---------- Run | Scr Mat Min Exi Min Mat Fac Fac Low Machines Disabled 17 | . 1 . . . . 15 1 . Max in Single Turn 1 | . 1 . . . . . . . Machines Sabotaged . | . . . . . . . . . Garrisons Compromised . | . . . . . . . . . Overloaded Fab Kills . | . . . . . . . . . Fab Network Shutdowns . | . . . . . . . . . Hacking | -11 -10 -10 -10 -9 -8 -7 -6 -6 --------- Run | Scr Mat Min Exi Min Mat Fac Fac Low Machines Accessed 10 | . 3 . 3 . 4 . . . Terminals 6 | . 3 . . . 3 . . . Fabricators . | . . . . . . . . . Repair Stations 1 | . . . . . 1 . . . Recycling Units . | . . . . . . . . . Scanalyzers . | . . . . . . . . . Garrison Access . | . . . . . . . . . Total Hacks 60 | . 9 . 40 . 11 . . . Successful 53 | . 6 . 40 . 7 . . . Failed 7 | . 3 . . . 4 . . . Catastrophic 1 | . . . . . 1 . . . Database Lockouts . | . . . . . . . . . Manual 16 | . 9 . 1 . 6 . . . Terminals 15 | . 9 . . . 6 . . . Fabricators . | . . . . . . . . . Repair Stations 5 | . . . . . 5 . . . Recycling Units . | . . . . . . . . . Scanalyzers . | . . . . . . . . . Garrison Access . | . . . . . . . . . Terminal Hacks 45 | . 2 . 40 . 3 . . . Record 40 | . . . 40 . . . . . Unreport Threat 2 | . . . . . 2 . . . Locate Traps 1 | . 1 . . . . . . . Zone Layout 2 | . 1 . . . 1 . . . Fabricator Hacks . | . . . . . . . . . Repair Station Hacks 4 | . . . . . 4 . . . Scan Component 2 | . . . . . 2 . . . Repair 2 | . . . . . 2 . . . Recycling Unit Hacks . | . . . . . . . . . Scanalyzer . | . . . . . . . . . Garrison Access Hacks . | . . . . . . . . . Unauthorized Hacks 4 | . 4 . . . . . . . Terminals 4 | . 4 . . . . . . . Track 3 | . 3 . . . . . . . Botnet 1 | . 1 . . . . . . . Fabricators . | . . . . . . . . . Repair Stations . | . . . . . . . . . Recycling Units . | . . . . . . . . . Scanalyzers . | . . . . . . . . . Garrison Access . | . . . . . . . . . Data Cores Recovered . | . . . . . . . . . Used . | . . . . . . . . . Hacking Detections 5 | . 3 . . . 2 . . . Full Trace Events 2 | . 1 . . . 1 . . . Feedback Events 1 | . 1 . . . . . . . Corruption 1 | . 1 . . . . . . . Feedback Blocked . | . . . . . . . . . Robot Schematics Acquired . | . . . . . . . . . Robots Built . | . . . . . . . . . Matter . | . . . . . . . . . Time . | . . . . . . . . . Total Robot Build Rating . | . . . . . . . . . Part Schematics Acquired . | . . . . . . . . . Parts Built . | . . . . . . . . . Matter . | . . . . . . . . . Time . | . . . . . . . . . Total Part Build Rating . | . . . . . . . . . Parts Repaired 2 | . . . . . 2 . . . Time 76 | . . . . . 76 . . . Parts Recycled . | . . . . . . . . . Recycled Matter . | . . . . . . . . . Retrieved Matter . | . . . . . . . . . Retrieved Components . | . . . . . . . . . Parts Scanalyzed . | . . . . . . . . . Part Schematics Acquired . | . . . . . . . . . Parts Damaged . | . . . . . . . . . Bothacking | -11 -10 -10 -10 -9 -8 -7 -6 -6 ------------ Run | Scr Mat Min Exi Min Mat Fac Fac Low Used RIF Installer . | . . . . . . . . . Robots Hacked . | . . . . . . . . . Non-combat . | . . . . . . . . . Combat . | . . . . . . . . . Robot Hacks Applied . | . . . . . . . . . Relay Couplers Released . | . . . . . . . . . Robots Rewired . | . . . . . . . . . Allies Hacked . | . . . . . . . . . Hacks Repelled . | . . . . . . . . . Allies | -11 -10 -10 -10 -9 -8 -7 -6 -6 -------- Run | Scr Mat Min Exi Min Mat Fac Fac Low Total Allies . | . . . . . . . . . Largest Group . | . . . . . . . . . Highest-Rated Group . | . . . . . . . . . Highest-Rated Ally . | . . . . . . . . . Total Orders 2 | . . . . . . . 2 . RETURN 2 | . . . . . . . 2 . Ally Attacks 247 | . . . . . 15 159 42 31 Total Damage 6903 | . . . . . 758 4445 878 822 Kills 59 | . . . . . 5 43 8 3 Allies Corrupted . | . . . . . . . . . Allies Melted 1 | . . . . . 1 . . . Turrets Deployed 3 | . . . 1 . 2 . . . Intel | -11 -10 -10 -10 -9 -8 -7 -6 -6 ------- Run | Scr Mat Min Exi Min Mat Fac Fac Low Robot Analysis Total . | . . . . . . . . . Derelict Logs Recovered 4 | . . 2 . 2 . . . . Drone Launches 50 | . . . . . . 31 12 7 Drone Recoveries 20 | . . . . . . 1 19 . Exploration | -11 -10 -10 -10 -9 -8 -7 -6 -6 ------------- Run | Scr Mat Min Exi Min Mat Fac Fac Low Turns Passed 7303 | 46 863 730 1316 421 1421 1692 405 409 Spaces Moved 3557 | 37 419 408 949 242 559 679 115 149 Core 4 | 1 . 3 . . . . . . Treads . | . . . . . . . . . Legs . | . . . . . . . . . Wheels 3553 | 36 419 405 949 242 559 679 115 149 Hover . | . . . . . . . . . Flight . | . . . . . . . . . Fastest Speed 50 | 50 80 90 120 150 150 160 260 270 Average Speed 164 | 79 109 115 136 150 172 227 267 270 Slowest Speed 650 | 80 120 650 160 150 180 230 270 270 Overloaded Moves . | . . . . . . . . . Propulsion Burnouts . | . . . . . . . . . Robots Hopped 5 | . . . 4 . 1 . . . Cave-ins Triggered . | . . . . . . . . . Exploration Rate (%) 47 | 2 67 83 91 59 55 37 11 20 Regions Visited 8 Branch Regions 4 Pre-discovered Areas 2 | . . . 1 1 . . . . Known Exits Taken 1 | . . . . . 1 . . . Unknown Exits Taken 7 | 1 1 1 1 1 . 1 1 . Scrap Searched 4 | . . 2 . 2 . . . . Spaces Dug 2 | . . . . . 2 . . . Terrain Destroyed 78 | . 12 . . . 23 . . 43 Melee 2 | . . . . . 2 . . . Projectile . | . . . . . . . . . AOE 76 | . 12 . . . 21 . . 43 Terrain Rammed . | . . . . . . . . . Walls Destroyed . | . . . . . . . . . Machines Disabled . | . . . . . . . . . Actions | -11 -10 -10 -10 -9 -8 -7 -6 -6 --------- Run | Scr Mat Min Exi Min Mat Fac Fac Low Total 4713 | 48 744 581 975 302 879 820 212 152 Wait 777 | . 267 76 . 54 168 119 93 . Move 3539 | 36 418 407 940 241 556 678 114 149 Hop 5 | . . . 4 . 1 . . . Pick Up 55 | 3 7 18 11 2 11 2 1 . Fast Attach 28 | 6 2 1 . . 17 2 . . Attach 21 | . 3 7 1 . 5 3 2 . Detach 5 | . 1 . . . 2 2 . . Swap 39 | 1 3 10 5 1 16 1 2 . Drop 63 | . 1 13 14 3 27 5 . . Fire 165 | 2 40 45 . . 72 3 . 3 Melee 2 | . . . . . 2 . . . Ram 10 | . 2 . . 1 2 5 . . Kick . | . . . . . . . . . Crush . | . . . . . . . . . Escape Stasis . | . . . . . . . . . Rewire . | . . . . . . . . . Trap 4 | . . 4 . . . . . . Miscellaneous . | . . . . . . . . . Route ------- -11/Scrapyard -10/Materials (discovered 2 exits: [*Mat] / [*Min]) -10/Mines (discovered 2 exits: [*Mat] / *Exi) -10/Exiles -9/Mines -8/Materials (discovered 2 exits: *Fac x2) -7/Factory -6/Factory -6/Lower Caves History --------- Turn | Location | Event 17 | -11/Scrapyard | Discovered new exit (range 16) 47 | -11/Scrapyard | Entered Materials 300 | -10/Materials | Build established: Mutant 324 | -10/Materials | Discovered new exit (range 16) 450 | -10/Materials | Discovered new exit (range 16) 910 | -10/Materials | Entered Mines 966 | -10/Mines | Found a hidden stash of uninstalled traps 987 | -10/Mines | Learned Materials interactive machine intel 1080 | -10/Mines | Learned Materials stockpile data 1110 | -10/Mines | Excavation squad dispatched 1110 | -10/Mines | A large section of the Mines collapsed 1205 | -10/Mines | Lost 3 parts (1p1n1w) 1263 | -10/Mines | Core integrity fell below 50% 1360 | -10/Mines | Excavation squad dispatched 1361 | -10/Mines | Discovered new exit (range 8) 1424 | -10/Mines | Core integrity fell below 20% 1457 | -10/Mines | Lost 3 parts (1p1n1w) 1634 | -10/Mines | Deemed a non-threat by the Exiles lab entrance 1634 | -10/Mines | Discovered new exit (range 5) 1640 | -10/Mines | Entered Exiles 1670 | -10/Exiles | Met 8R-AWN 1691 | -10/Exiles | Met EX-HEX 1736 | -10/Exiles | Build established: Scavenger-Mutant 1754 | -10/Exiles | Met EX-BIN 1859 | -10/Exiles | Met EX-DEC 1871 | -10/Exiles | Learned location of Zion (-6) 1932 | -10/Exiles | Discovered new exit (range 14) 2022 | -10/Exiles | Visited The Gauntlet 2257 | -10/Exiles | Aligned with FarCom system 2259 | -10/Exiles | Given EX-Vault access code 2293 | -10/Exiles | Opened EX-Vault 2301 | -10/Exiles | Found Deploy-a-Sentry 2304 | -10/Exiles | DAS Turret deployed 2308 | -10/Exiles | Found Prototype Energy Cannon 2309 | -10/Exiles | Identified Gui. Plasma Cannon 2328 | -10/Exiles | Found Prototype Device 2358 | -10/Exiles | Warned to stay clear of 0b10 Research branches 2466 | -10/Exiles | Build established: Hauler-Mutant 2790 | -10/Exiles | Found Deploy-a-Sentry 2793 | -10/Exiles | Found Deploy-a-Sentry 2956 | -10/Exiles | Stole three prototypes: Gui. Plasma Cannon, Deploy-a-Sentry, Army-in-a-Box 2956 | -10/Exiles | Entered Mines 2964 | -9/Mines | Received a Rocket Launcher from a helpful Derelict 2965 | -9/Mines | Learned location of 1 exit from Materials 3112 | -9/Mines | A weapon hastily lodged in a ceiling crevice suddenly fell to the ground 3281 | -9/Mines | Discovered new exit (range 12) 3377 | -9/Mines | Entered Materials 3377 | -8/Materials | Evolved 4 slots: Utility x4 3378 | -8/Materials | Identified exit to Factory 3380 | -8/Materials | Loaded intel: 19 interactive machine locations 4241 | -8/Materials | DAS Turret deployed 4539 | -8/Materials | Repaired Hvy. Armor Plating 4578 | -8/Materials | Repaired Hvy. Armor Plating 4588 | -8/Materials | DAS Turret deployed 4771 | -8/Materials | Discovered exit to Factory (range 16) 4798 | -8/Materials | Entered Factory 4798 | -7/Factory | Evolved 2 slots: Utility x2 4800 | -7/Factory | FarCom data flow suspended 4800 | -7/Factory | Identified Army-in-a-Box 6219 | -7/Factory | Garrison activated, responded to threat 6275 | -7/Factory | Discovered new exit (range 17) 6490 | -7/Factory | Entered another Factory area 6490 | -6/Factory | Accompanied by 12 allies 6490 | -6/Factory | Evolved 2 slots: Utility x2 6824 | -6/Factory | Discovered new exit (range 7) 6840 | -6/Factory | First assault squad dispatched 6895 | -6/Factory | Entered Lower Caves 7304 | -6/Lower Caves | Self-destructed Last Messages --------------- 07008_ N0-4SW(k) breaks down the debris. 07008_ G-50 Soldier destroyed. 07010_ The unstable cave ceiling collapses. 07011_ G-50 Soldier destroyed. 07015_ The unstable cave ceiling collapses. 07015_ Destroyed Electrolaser. 07015_ Acquired 29 matter. 07017_ The unstable cave ceiling collapses. 07017_ G-67 Veteran destroyed. 07024_ Carbon-fiber Leg fries itself beyond repair. 07024_ The unstable cave ceiling collapses. 07032_ Flexi-carbon Leg fries itself beyond repair. 07035_ The unstable cave ceiling collapses. 07040_ Acquired 13 matter. 07041_ The unstable cave ceiling collapses. 07261_ Army Drone crushed by falling debris. 07299_ G-67 Veteran: "INCOMING HOSTILES. DEFEND SHIPMENT RENDEZVOUS PERIMETER." 07302_ Army Drone destroyed. 07304_ G-50 Soldier destroyed. Map ----- +----------------------------------------------------+ | ?????????????????????????????????????????????????? | | ?????????????????????????????????????????????????? | | ?????????????????????????????????????????????????? | | ?????????????????????????????????????????????????? | | ?????????????????????????????????????????????????? | | ?????????????????????????????????????????????????? | | ?????????????????????????????????????????????????? | | ?????????????????????????????????????????????????? | | ?????????????????????????????????????????????????? | | ?????????????????????????????????????????????????? | | ?????????????????????????????????????????????????? | | ?????????????????????????????????????????????????? | | ?????????????????????????????????????????????????? | | ?????????????????????????????????????????????????? | | ?????????????????????????????????????????????????? | | ?????????????????????????????????????????????????? | | ?????????????????????????????????????????????????? | | ?????????????????????????????????????????????????? | | ?????????????????????????????????????????????????? | | ???????????? ?##???????????????????????????????? | | ????????????? # ??????????????????????????????? | | ??????????????? ?????????????????????????????? | | ???????????????## ?????###????????????????????? | | ?????????????# # gg ????# ##?####??????????????? | | ?????????????# =gg%= #### ### ##??####???????? | | ?????????????# % @ %%## %%#### ######### | | ??????????????# n ## % ## | | ??????????????## ## n ## % | | ???????????????##### ##?## ###### | | ???????????????????# ?????## % ##????# | | ???????????????????#??????## #?????# | | ?????????????????????????##% ###?????### | | ?????????????????????????# %##???????# # | | ?????????????????????????# %##% %#????##### | | ?????????????????????????# % #### ####??### # | | ?????????????????????????## %#??# #????## # | | ??????????????????????????## #### #???## | | ???????????????????????????## ##??# | | ????????????????????????????###### ##?# ### | | ?????????????????????????????????# ### #???# | | ?????????????????????????????????# ##??? | | ?????????????????????????????????## #??? | | ??????????????????????????????????## #??# | | ???????????????????????????????????# #?## | | ???????????????????????????????????# ##?# | | ???????????????????????????????????# ##?# | | ????????????????????????????????####### ###% | | ????????????????????????????????# #?## = | | ??????????????????????????????### ### ## % | | ??????????????????????????????# ### | +----------------------------------------------------+ Best States ------------- Heat Dissipation 45 Energy Generation 14 Energy Capacity 265 Matter Stores 500 Matter Capacity 500 Sight Range 16 Terrain Scan Range 20 Terrain Scan Density 10 Armor Coverage 1200 Evasion (%) 44 Targeting Accuracy 8 Recoil Reduction 1 Item Schematics ----------------- None Robot Schematics ------------------ None Fabricated ------------ Nothing Alien Tech Used ----------------- None Achievements -------------- Tank Challenges ------------ None Game ------ Seed AnalysisSniperBay Manual? 0 Play Time 01:05:53 Cumulative 60.0 hours Start 2021.11.03 @ 10:55:50 End 2021.11.03 @ 16:44:31 Sessions 7 Manual Loads 0 Difficulty Rogue Special Mode None Game No. 47 Rogue 45 Adventurer 2 Explorer 0 Win Type - Total 0 Types 0/0/0/0/0/0/0/0/0 Lore% 29 Gallery% 31 Achievement% 31 Wizard Run 0 Options --------- ASCII 0 Keyboard 0 Movement Mouse Keybinds 1 Fullscreen 1 Font 18/TerminusBold Map View 76x50 Tactical HUD 1 Map Filters NONE Filters NONE Steam 1 RUN: 57091f9e-5d5a-4a8c-9182-c8487fa9e5a3